fUSD/lending_fUSD_20250503
["ID","MTS","AMOUNT","RATE_DAILY","PERIOD"]
[359699486,1746262248988,-500.0,0.00019999,2]
[359699487,1746262248997,-500.0,0.00019999,2]
[359699488,1746262249007,-500.0,0.00019999,2]
[359699489,1746262249016,-500.0,0.00019999,2]
[359699490,1746262249026,-587.97322185,0.00019999,2]
[359699491,1746262249035,-271.4745152,0.0002,2]
[359699492,1746262249045,-1190671.10428442,0.0002,2]
[359699493,1746262249055,-1189780.77586038,0.0002,2]
[359699494,1746262249064,-1780.05270486,0.0002,2]
[359699495,1746262249073,-30000.0,0.0002,2]
[359699496,1746262249083,-211.0,0.0002,2]
[359699497,1746262249093,-211.0,0.0002,2]
[359699498,1746262249102,-211.0,0.0002,2]
[359699499,1746262249111,-208.0,0.0002,2]
[359699500,1746262249120,-208.0,0.0002,2]
[359699501,1746262249129,-208.0,0.0002,2]
[359699502,1746262249139,-208.0,0.0002,2]
[359699503,1746262249148,-208.0,0.0002,2]
[359699504,1746262249157,-208.0,0.0002,2]
[359699505,1746262249166,-208.0,0.0002,2]
[359699506,1746262249177,-208.0,0.0002,2]
[359699507,1746262249187,-208.0,0.0002,2]
[359699508,1746262249196,-208.0,0.0002,2]
[359699509,1746262249205,-208.0,0.0002,2]
[359699510,1746262249215,-208.0,0.0002,2]
[359699511,1746262249224,-208.0,0.0002,2]
[359699512,1746262249233,-208.0,0.0002,2]
[359699513,1746262249243,-208.0,0.0002,2]
[359699514,1746262249253,-208.0,0.0002,2]
[359699515,1746262249262,-386.0,0.0002,2]
[359699516,1746262249271,-500.0,0.0002,2]
[359699517,1746262249281,-156.343,0.0002,2]
[359699518,1746262249290,-3972.79189638,0.0002,2]
[359699519,1746262249299,-1022743.19385028,0.0002,2]
[359699520,1746262249664,-558.89350208,0.0002,2]
[359699521,1746262249675,-454.93304998,0.0002,2]
[359699522,1746262249686,-4824.05,0.0002,2]
[359699523,1746262249706,-955.2792994,0.0002,2]
[359699524,1746262249718,-22004.2954165,0.0002,2]
[359699525,1746262249733,-660.0,0.0002,2]
[359699526,1746262250677,-364.3572772,0.00019771,2]
[359699527,1746262250689,-85.6427228,0.00019771,2]
[359699528,1746262250698,-450.0,0.00019773,2]
[359699529,1746262250707,-933.52,0.00019776,2]
[359699530,1746262250716,-85.5972772,0.000199,2]
[359699531,1746262250728,-87.0857042,0.000199,2]
[359699532,1746262250738,-4966.63947512,0.0002,2]
[359699533,1746262250756,-318.8803487,0.0002,2]
[359699534,1746262250768,-310.0594,0.0002,2]
[359699535,1746262318160,723.01376637,0.00019572,2]
[359699536,1746262318181,728.45303363,0.00019572,2]
[359699537,1746262359124,367.69,0.0001704,2]
[359699538,1746262359326,367.69,0.00019304,2]
[359699540,1746262383891,1000.0,0.00018957,2]
[359699541,1746262405319,222.05173,0.0002,23]
[359699542,1746262657599,152.0,0.00015104,2]
[359699543,1746262701933,250.0,0.00018807,7]
[359699544,1746262710734,222.05173,0.000248,34]
[359699545,1746262710777,222.05174,0.000273,39]
[359699546,1746262710870,222.05173,0.000298,44]
[359699547,1746262977797,3753.8131559,0.0003,30]
[359699548,1746263016286,222.05174,0.0002595,36]
[359699549,1746263052043,150.050318,0.0003,120]
[359699550,1746263053574,169.04,0.00019178,2]
[359699551,1746263082701,150.050318,0.0003,120]
[359699552,1746263241424,5000.0,0.0003013,120]
[359699554,1746263245839,215.12696637,0.00018757,2]
[359699555,1746263245859,284.87303363,0.00018757,2]
[359699585,1746263314324,152.03,0.00018754,2]
[359699586,1746263314525,152.03,0.000188,2]
[359699587,1746263314726,152.03,0.00018847,2]
[359699588,1746263320342,1056.434684,0.00019564,2]
[359699589,1746263325636,1202.60228237,0.00019,2]
[359699590,1746263325659,3000.0,0.00019,2]
[359699591,1746263325679,893.82037272,0.00019,2]
[359699592,1746263339254,250.0,0.00017,2]
[359699593,1746263340646,300.0,0.00019,2]
[359699594,1746263428273,388.24,0.00016833,2]
[359699595,1746263428487,388.24,0.00019097,2]
[359699599,1746263431928,-1516.30320555,0.00019663,2]
[359699600,1746263431938,-250.0,0.00019664,2]
[359699601,1746263431947,-1843.89530437,0.00019664,2]
[359699602,1746263431982,-413.05636154,0.00019664,2]
[359699603,1746263431991,-172.6829814,0.00019665,2]
[359699604,1746263432001,-151.0,0.00019666,2]
[359699605,1746263432011,-157.55048229,0.00019667,2]
[359699606,1746263432021,-1200.0,0.00019689,2]
[359699607,1746263432031,-323.12811708,0.00019689,2]
[359699608,1746263432043,-451.3,0.00019689,2]
[359699609,1746263432058,-318.48664193,0.00019689,2]
[359699610,1746263432091,-423.38844648,0.00019689,2]
[359699611,1746263432101,-2256.95166584,0.0001969,2]
[359699612,1746263432111,-300.0,0.00019699,2]
[359699613,1746263432121,-300.0,0.00019699,2]
[359699614,1746263432131,-150.0,0.000197,2]
[359699615,1746263432140,-1000.0,0.000197,2]
[359699616,1746263432150,-159.19879139,0.00019709,2]
[359699617,1746263432159,-1516.30320549,0.00019716,2]
[359699618,1746263432169,-2256.95166584,0.00019716,2]
[359699619,1746263432178,-380.76559873,0.00019717,2]
[359699620,1746263432187,-1516.30320549,0.00019742,2]
[359699621,1746263432197,-278.29849374,0.00019743,2]
[359699624,1746263432217,-1978.6531721,0.00019743,2]
[359699626,1746263432226,-380.76559873,0.00019748,2]
[359699628,1746263432236,-207.4,0.00019752,2]
[359699630,1746263432245,-151.0,0.00019761,2]
[359699632,1746263432255,-668.65185757,0.00019761,2]
[359699634,1746263432265,-419.24,0.00019762,2]
[359699636,1746263432274,-450.0,0.00019762,2]
[359699638,1746263432284,-450.0,0.00019762,2]
[359699640,1746263432293,-450.0,0.00019762,2]
[359699642,1746263432302,-664.71,0.00019762,2]
[359699644,1746263432311,-450.0,0.00019762,2]
[359699646,1746263432321,-450.0,0.00019762,2]
[359699648,1746263432330,-450.0,0.00019762,2]
[359699650,1746263432339,-450.0,0.00019762,2]
[359699652,1746263432349,-450.0,0.00019762,2]
[359699654,1746263432358,-453.09,0.00019762,2]
[359699656,1746263432367,-532.18,0.00019762,2]
[359699658,1746263432376,-990.85,0.00019762,2]
[359699660,1746263432385,-450.0,0.00019762,2]
[359699662,1746263432394,-4024.31,0.00019762,2]
[359699664,1746263432403,-450.0,0.00019762,2]
[359699666,1746263432413,-450.0,0.00019762,2]
[359699668,1746263432422,-1.8127951,0.00019762,2]
[359699675,1746263432484,-448.1872049,0.00019762,2]
[359699677,1746263432493,-514.6989003,0.00019762,2]
[359699838,1746263435001,247.29,0.00018754,2]
[359700136,1746263437936,-43.7977617,0.00019762,2]
[359700138,1746263437947,-450.0,0.00019762,2]
[359700140,1746263437956,-1703.01,0.00019762,2]
[359700142,1746263437965,-179.667918,0.00019762,2]
[359700144,1746263437974,-450.0,0.00019762,2]
[359700146,1746263437983,-450.0,0.00019762,2]
[359700148,1746263437992,-5051.88,0.00019762,2]
[359700150,1746263438001,-450.0,0.00019764,2]
[359700152,1746263438011,-205.66,0.00019764,2]
[359700154,1746263438020,-500.0,0.00019764,2]
[359700156,1746263438029,-157.1843203,0.00019764,2]
[359700159,1746263438050,-411.50849424,0.00019764,2]
[359700160,1746263438059,-500.0,0.00019764,2]
[359700162,1746263438069,-210.83836096,0.00019765,2]
[359700239,1746263440077,-260.73798403,0.00019765,2]
[359700240,1746263440087,-450.0,0.00019766,2]
[359700241,1746263440097,-450.0,0.00019766,2]
[359700242,1746263440106,-450.0,0.00019766,2]
[359700243,1746263440116,-450.0,0.00019766,2]
[359700244,1746263440126,-450.0,0.00019766,2]
[359700245,1746263440135,-533.23059887,0.00019766,2]
[359700246,1746263440144,-578.71361454,0.00019766,2]
[359700247,1746263440154,-654.02,0.00019766,2]
[359700248,1746263440163,-450.0,0.00019766,2]
[359700249,1746263440173,-450.0,0.00019766,2]
[359700250,1746263440182,-450.0,0.00019766,2]
[359700251,1746263440192,-450.0,0.00019766,2]
[359700252,1746263440202,-450.0,0.00019766,2]
[359700253,1746263440212,-467.66969738,0.00019766,2]
[359700254,1746263440221,-450.0,0.00019766,2]
[359700255,1746263440230,-154.26951064,0.00019766,2]
[359700256,1746263440239,-450.0,0.00019766,2]
[359700257,1746263440249,-466.52660678,0.00019766,2]
[359700258,1746263440258,-450.0,0.00019766,2]
[359700259,1746263440267,-450.0,0.00019766,2]
[359700260,1746263440277,-450.0,0.00019766,2]
[359700261,1746263440286,-450.0,0.00019766,2]
[359700262,1746263440295,-450.0,0.00019766,2]
[359700263,1746263440304,-450.0,0.00019766,2]
[359700264,1746263440314,-450.0,0.00019766,2]
[359700265,1746263440323,-450.0,0.00019766,2]
[359700266,1746263440333,-450.0,0.00019766,2]
[359700267,1746263440342,-450.0,0.00019766,2]
[359700268,1746263440351,-450.0,0.00019766,2]
[359700269,1746263440360,-450.0,0.00019766,2]
[359700270,1746263440369,-450.0,0.00019766,2]
[359700271,1746263440378,-1054.94,0.00019766,2]
[359700272,1746263440387,-450.0,0.00019766,2]
[359700273,1746263440396,-450.0,0.00019766,2]
[359700274,1746263440405,-450.0,0.00019766,2]
[359700275,1746263440414,-450.0,0.00019766,2]
[359700276,1746263440423,-450.0,0.00019766,2]
[359700277,1746263440431,-450.0,0.00019766,2]
[359700278,1746263440441,-450.0,0.00019766,2]
[359700279,1746263440450,-450.0,0.00019766,2]
[359700280,1746263440459,-450.0,0.00019766,2]
[359700281,1746263440472,-450.0,0.00019766,2]
[359700282,1746263440481,-154.47470558,0.00019766,2]
[359700283,1746263440490,-450.0,0.00019766,2]
[359700284,1746263440499,-450.0,0.00019766,2]
[359700285,1746263440508,-450.0,0.00019766,2]
[359700286,1746263440518,-450.0,0.00019766,2]
[359700287,1746263440527,-450.0,0.00019766,2]
[359700288,1746263440536,-450.0,0.00019766,2]
[359700289,1746263440545,-691.71,0.00019766,2]
[359700290,1746263440555,-450.0,0.00019766,2]
[359700291,1746263440564,-588.76,0.00019766,2]
[359700292,1746263440573,-450.0,0.00019766,2]
[359700293,1746263440582,-450.0,0.00019766,2]
[359700294,1746263440591,-467.86107191,0.00019766,2]
[359700295,1746263440599,-450.0,0.00019766,2]
[359700296,1746263440608,-307.88,0.00019766,2]
[359700297,1746263440617,-500.0,0.00019766,2]
[359700298,1746263440626,-500.0,0.00019766,2]
[359700299,1746263440636,-562.78124099,0.00019766,2]
[359700300,1746263440645,-153.38,0.00019766,2]
[359700301,1746263440654,-584.92949595,0.00019766,2]
[359700302,1746263440663,-450.0,0.00019766,2]
[359700303,1746263440672,-492.43,0.00019766,2]
[359700304,1746263440681,-261.63,0.00019766,2]
[359700305,1746263440689,-450.0,0.00019766,2]
[359700306,1746263440698,-450.0,0.00019766,2]
[359700307,1746263440707,-496.91925382,0.00019766,2]
[359700308,1746263440716,-463.13128651,0.00019766,2]
[359700309,1746263440726,-450.0,0.00019766,2]
[359700310,1746263440734,-450.0,0.00019766,2]
[359700311,1746263440743,-450.0,0.00019766,2]
[359700312,1746263440752,-450.0,0.00019766,2]
[359700313,1746263440761,-450.0,0.00019766,2]
[359700314,1746263440770,-450.0,0.00019766,2]
[359700315,1746263440779,-466.11887136,0.00019766,2]
[359700316,1746263440787,-462.90583644,0.00019766,2]
[359700317,1746263440940,-450.0,0.00019766,2]
[359700318,1746263440950,-513.46634422,0.00019766,2]
[359700319,1746263440959,-272.83,0.00019766,2]
[359700320,1746263440968,-450.0,0.00019766,2]
[359700321,1746263440977,-588.85,0.00019766,2]
[359700322,1746263440986,-224.74799335,0.00019766,2]
[359700323,1746263440995,-456.6535344,0.00019766,2]
[359700324,1746263441004,-311.78,0.00019766,2]
[359700325,1746263441014,-459.43296747,0.00019766,2]
[359700326,1746263441023,-450.0,0.00019766,2]
[359700327,1746263441032,-462.33875792,0.00019766,2]
[359700328,1746263441043,-450.0,0.00019766,2]
[359700329,1746263441052,-450.0,0.00019766,2]
[359700330,1746263441061,-450.0,0.00019766,2]
[359700331,1746263441070,-450.0,0.00019766,2]
[359700332,1746263441079,-450.0,0.00019766,2]
[359700333,1746263441089,-450.0,0.00019766,2]
[359700334,1746263441098,-500.0,0.00019766,2]
[359700335,1746263441107,-500.0,0.00019766,2]
[359700336,1746263441116,-450.0,0.00019766,2]
[359700337,1746263441126,-457.58970064,0.00019766,2]
[359700338,1746263441135,-481.624246,0.00019766,2]
[359700339,1746263441144,-450.0,0.00019766,2]
[359700340,1746263441154,-455.62903975,0.00019766,2]
[359700341,1746263441163,-459.64652279,0.00019766,2]
[359700342,1746263441173,-469.27,0.00019766,2]
[359700343,1746263441183,-1021.96409913,0.00019766,2]
[359700344,1746263441193,-463.08530949,0.00019766,2]
[359700345,1746263441202,-450.0,0.00019766,2]
[359700346,1746263441211,-455.6267015,0.00019766,2]
[359700347,1746263441220,-450.0,0.00019766,2]
[359700348,1746263441229,-457.84313494,0.00019766,2]
[359700349,1746263441239,-466.50913843,0.00019766,2]
[359700350,1746263441248,-461.10806692,0.00019766,2]
[359700351,1746263441257,-450.00055236,0.00019766,2]
[359700352,1746263441269,-475.84141958,0.00019766,2]
[359700353,1746263441279,-454.09516717,0.00019766,2]
[359700354,1746263441288,-474.39203046,0.00019766,2]
[359700355,1746263441297,-468.96079997,0.00019766,2]
[359700356,1746263441306,-517.82173724,0.00019766,2]
[359700357,1746263441315,-450.0,0.00019766,2]
[359700358,1746263441324,-526.41253838,0.00019766,2]
[359700359,1746263441334,-450.0,0.00019766,2]
[359700360,1746263441343,-450.0,0.00019766,2]
[359700361,1746263441352,-450.0,0.00019766,2]
[359700362,1746263441360,-450.0,0.00019766,2]
[359700363,1746263441370,-157.41068815,0.00019766,2]
[359700364,1746263441379,-450.0,0.00019766,2]
[359700365,1746263441388,-481.72757312,0.00019766,2]
[359700366,1746263441398,-531.49299216,0.00019766,2]
[359700367,1746263441407,-450.0,0.00019766,2]
[359700368,1746263441416,-450.0,0.00019766,2]
[359700369,1746263441425,-450.0,0.00019766,2]
[359700370,1746263441434,-489.62464043,0.00019766,2]
[359700371,1746263441444,-499.01,0.00019766,2]
[359700372,1746263441453,-465.67882228,0.00019766,2]
[359700373,1746263441465,-450.0,0.00019766,2]
[359700374,1746263441477,-770.2,0.00019766,2]
[359700375,1746263441486,-908.68,0.00019766,2]
[359700376,1746263441495,-450.0,0.00019766,2]
[359700377,1746263441506,-450.0,0.00019766,2]
[359700378,1746263441515,-450.0,0.00019766,2]
[359700379,1746263441525,-450.0,0.00019766,2]
[359700380,1746263441534,-471.88,0.00019766,2]
[359700381,1746263441545,-460.90549166,0.00019766,2]
[359700382,1746263441554,-504.1,0.00019766,2]
[359700383,1746263441564,-450.0,0.00019766,2]
[359700384,1746263441573,-450.0,0.00019766,2]
[359700385,1746263441582,-450.0,0.00019766,2]
[359700386,1746263441592,-103425.54,0.00019766,2]
[359700387,1746263441601,-508.65,0.00019766,2]
[359700388,1746263441610,-450.0,0.00019766,2]
[359700389,1746263441620,-465.94904646,0.00019766,2]
[359700390,1746263441630,-450.0,0.00019766,2]
[359700391,1746263441641,-586.88,0.00019766,2]
[359700392,1746263441651,-450.0,0.00019766,2]
[359700393,1746263441661,-450.0,0.00019766,2]
[359700394,1746263441670,-450.0,0.00019766,2]
[359700395,1746263441681,-513.8096182,0.00019766,2]
[359700396,1746263441690,-501.56,0.00019766,2]
[359700397,1746263441706,-5689.18,0.00019766,2]
[359700398,1746263441715,-450.0,0.00019766,2]
[359700399,1746263441727,-450.0,0.00019766,2]
[359700400,1746263441737,-472.26513516,0.00019766,2]
[359700401,1746263441747,-259.17221031,0.00019766,2]
[359700402,1746263441758,-500.0,0.00019766,2]
[359700403,1746263441767,-500.0,0.00019766,2]
[359700404,1746263441776,-710.62,0.00019766,2]
[359700405,1746263441785,-450.0,0.00019766,2]
[359700406,1746263441793,-450.0,0.00019766,2]
[359700407,1746263441802,-506.5733682,0.00019766,2]
[359700408,1746263441811,-450.0,0.00019766,2]
[359700409,1746263441821,-479.64228365,0.00019766,2]
[359700410,1746263441830,-514.44963635,0.00019766,2]
[359700411,1746263441839,-464.54825935,0.00019766,2]
[359700412,1746263441848,-450.0,0.00019766,2]
[359700413,1746263441857,-538.54,0.00019766,2]
[359700414,1746263441867,-531.78,0.00019766,2]
[359700415,1746263441876,-649.34,0.00019766,2]
[359700416,1746263441885,-490.71,0.00019766,2]
[359700417,1746263441894,-450.0,0.00019766,2]
[359700418,1746263441903,-450.0,0.00019766,2]
[359700419,1746263441912,-450.0,0.00019766,2]
[359700420,1746263441922,-500.0,0.00019766,2]
[359700421,1746263441931,-500.0,0.00019766,2]
[359700422,1746263441940,-450.0,0.00019766,2]
[359700423,1746263441949,-450.0,0.00019766,2]
[359700424,1746263441959,-450.0,0.00019766,2]
[359700425,1746263441969,-542.29,0.00019766,2]
[359700426,1746263441978,-168.62056832,0.00019766,2]
[359700427,1746263441987,-450.0,0.00019766,2]
[359700428,1746263441997,-636.07,0.00019766,2]
[359700429,1746263442006,-687.08,0.00019766,2]
[359700430,1746263442016,-450.0,0.00019766,2]
[359700431,1746263442025,-450.0,0.00019766,2]
[359700432,1746263442034,-478.25309294,0.00019766,2]
[359700433,1746263442043,-464.06,0.00019766,2]
[359700434,1746263442053,-450.0,0.00019766,2]
[359700435,1746263442062,-462.36656232,0.00019766,2]
[359700436,1746263442072,-826.22,0.00019766,2]
[359700437,1746263442082,-450.0,0.00019766,2]
[359700438,1746263442091,-4039.66,0.00019766,2]
[359700439,1746263442100,-450.0,0.00019766,2]
[359700440,1746263442109,-450.0,0.00019766,2]
[359700441,1746263442118,-453.91,0.00019766,2]
[359700442,1746263442127,-2435.16,0.00019766,2]
[359700443,1746263442137,-492.40430465,0.00019766,2]
[359700444,1746263442146,-450.0,0.00019766,2]
[359700445,1746263442155,-688.86,0.00019766,2]
[359700446,1746263442165,-537.33,0.00019766,2]
[359700447,1746263442174,-999.0,0.00019766,2]
[359700448,1746263442184,-450.0,0.00019766,2]
[359700449,1746263442193,-2815.32,0.00019766,2]
[359700450,1746263442202,-735.66,0.00019766,2]
[359700451,1746263442212,-450.0,0.00019766,2]
[359700452,1746263442223,-450.0,0.00019766,2]
[359700453,1746263442232,-766.73,0.00019766,2]
[359700454,1746263442243,-450.0,0.00019766,2]
[359700455,1746263442252,-450.0,0.00019766,2]
[359700456,1746263442262,-450.0,0.00019766,2]
[359700457,1746263442272,-450.0,0.00019766,2]
[359700458,1746263442281,-551.07,0.00019766,2]
[359700459,1746263442290,-544.63,0.00019766,2]
[359700460,1746263442300,-530.92,0.00019766,2]
[359700461,1746263442310,-450.0,0.00019766,2]
[359700462,1746263442319,-450.0,0.00019766,2]
[359700463,1746263442328,-932.46,0.00019766,2]
[359700464,1746263442338,-1771.62,0.00019766,2]
[359700465,1746263442347,-482.82,0.00019766,2]
[359700466,1746263442357,-450.0,0.00019766,2]
[359700467,1746263442366,-450.0,0.00019766,2]
[359700468,1746263442375,-1033.88,0.00019766,2]
[359700469,1746263442384,-450.0,0.00019766,2]
[359700470,1746263442394,-450.0,0.00019766,2]
[359700471,1746263442404,-469.34842425,0.00019766,2]
[359700472,1746263442413,-476.63,0.00019766,2]
[359700473,1746263442422,-696.35,0.00019766,2]
[359700474,1746263442431,-450.0,0.00019766,2]
[359700475,1746263442440,-463.64256964,0.00019766,2]
[359700476,1746263442450,-450.0,0.00019766,2]
[359700477,1746263442459,-453.64158599,0.00019766,2]
[359700478,1746263442473,-450.0,0.00019766,2]
[359700479,1746263442483,-5024.86,0.00019766,2]
[359700480,1746263442493,-450.0,0.00019766,2]
[359700481,1746263442502,-464.37658842,0.00019766,2]
[359700482,1746263442511,-450.43049376,0.00019766,2]
[359700483,1746263442521,-450.0,0.00019766,2]
[359700484,1746263442530,-450.0,0.00019766,2]
[359700485,1746263442539,-450.0,0.00019766,2]
[359700486,1746263442548,-450.0,0.00019766,2]
[359700487,1746263442558,-152.32581017,0.00019766,2]
[359700488,1746263442567,-450.0,0.00019766,2]
[359700489,1746263442576,-1702.42,0.00019766,2]
[359700490,1746263442585,-450.0,0.00019766,2]
[359700491,1746263442594,-462.20981104,0.00019766,2]
[359700492,1746263442603,-5171.49,0.00019766,2]
[359700493,1746263442613,-450.0,0.00019766,2]
[359700494,1746263442622,-450.0,0.00019766,2]
[359700495,1746263442631,-562.94038197,0.00019766,2]
[359700496,1746263442640,-463.48474594,0.00019766,2]
[359700497,1746263442650,-631.27,0.00019766,2]
[359700498,1746263442659,-450.0,0.00019766,2]
[359700499,1746263442668,-4508.27,0.00019766,2]
[359700500,1746263442677,-450.0,0.00019766,2]
[359700501,1746263442686,-398.2486717,0.00019766,2]
[359700502,1746263442696,-250.0,0.00019766,2]
[359700503,1746263442704,-464.20793038,0.00019766,2]
[359700504,1746263442713,-450.0,0.00019766,2]
[359700506,1746263442723,-547.3,0.00019766,2]
[359700507,1746263442733,-576.05,0.00019766,2]
[359700508,1746263442742,-450.0,0.00019766,2]
[359700510,1746263442752,-491.75,0.00019766,2]
[359700511,1746263442761,-450.0,0.00019766,2]
[359700512,1746263442770,-450.0,0.00019766,2]
[359700513,1746263442779,-533.2085114,0.00019766,2]
[359700514,1746263442788,-456.68072204,0.00019766,2]
[359700515,1746263442798,-595.66,0.00019766,2]
[359700516,1746263442808,-450.0,0.00019766,2]
[359700517,1746263442817,-151.71960003,0.00019766,2]
[359700518,1746263442826,-645.0,0.00019766,2]
[359700519,1746263442835,-463.08099371,0.00019766,2]
[359700520,1746263442845,-450.0,0.00019766,2]
[359700521,1746263442854,-450.0,0.00019766,2]
[359700522,1746263442864,-609.37,0.00019766,2]
[359700523,1746263442874,-4643.8,0.00019766,2]
[359700524,1746263442883,-450.0,0.00019766,2]
[359700525,1746263442892,-465.01,0.00019766,2]
[359700526,1746263442902,-450.0,0.00019766,2]
[359700527,1746263442911,-465.23860558,0.00019766,2]
[359700528,1746263442921,-450.0,0.00019766,2]
[359700529,1746263442930,-450.0,0.00019766,2]
[359700531,1746263442939,-450.0,0.00019766,2]
[359700533,1746263442949,-450.0,0.00019766,2]
[359700534,1746263442958,-78719.08,0.00019766,2]
[359700535,1746263442967,-450.0,0.00019766,2]
[359700536,1746263442978,-450.0,0.00019766,2]
[359700537,1746263442988,-450.0,0.00019766,2]
[359700538,1746263442998,-450.0,0.00019766,2]
[359700539,1746263443009,-450.0,0.00019766,2]
[359700540,1746263443018,-4501.98,0.00019766,2]
[359700541,1746263443028,-450.0,0.00019766,2]
[359700542,1746263443037,-480.26,0.00019766,2]
[359700543,1746263443047,-663.09,0.00019766,2]
[359700544,1746263443057,-22705.82,0.00019766,2]
[359700545,1746263443066,-450.0,0.00019766,2]
[359700546,1746263443076,-450.0,0.00019767,2]
[359700547,1746263443086,-450.0,0.00019767,2]
[359700548,1746263443095,-450.0,0.00019767,2]
[359700549,1746263443106,-550.92,0.00019767,2]
[359700550,1746263443115,-894.62,0.00019767,2]
[359700551,1746263443124,-1681.41,0.00019767,2]
[359700552,1746263443134,-450.0,0.00019767,2]
[359700553,1746263443143,-450.0,0.00019767,2]
[359700554,1746263443153,-14747.32,0.00019767,2]
[359700555,1746263443162,-450.0,0.00019767,2]
[359700556,1746263443172,-633.39,0.00019767,2]
[359700557,1746263443181,-1516.30320549,0.00019768,2]
[359700558,1746263443191,-2256.95166584,0.00019769,2]
[359700559,1746263443200,-578.22351535,0.0001977,2]
[359700560,1746263443209,-452.03377488,0.0001977,2]
[359700561,1746263443219,-453.12089302,0.0001977,2]
[359700562,1746263443228,-450.0,0.0001977,2]
[359700563,1746263443238,-480.48093408,0.0001977,2]
[359700564,1746263443247,-1089.85,0.0001977,2]
[359700565,1746263443257,-450.0,0.0001977,2]
[359700566,1746263443266,-644.8,0.0001977,2]
[359700567,1746263443276,-1656.08,0.0001977,2]
[359700568,1746263443285,-753.35,0.0001977,2]
[359700569,1746263443301,-490.18772966,0.0001977,2]
[359700570,1746263443315,-450.0,0.0001977,2]
[359700571,1746263443326,-531.06,0.0001977,2]
[359700572,1746263443335,-534.66,0.0001977,2]
[359700573,1746263443345,-450.0,0.0001977,2]
[359700574,1746263443355,-571.31,0.0001977,2]
[359700575,1746263443365,-1729.65,0.0001977,2]
[359700577,1746263443375,-607.32,0.0001977,2]
[359700579,1746263443385,-500.0,0.0001977,2]
[359700581,1746263443395,-671.35,0.0001977,2]
[359700582,1746263443406,-455.41718845,0.0001977,2]
[359700583,1746263443415,-450.0,0.0001977,2]
[359700584,1746263443425,-500.0,0.0001977,2]
[359700585,1746263443435,-864.04,0.0001977,2]
[359700586,1746263443444,-450.0,0.0001977,2]
[359700587,1746263443454,-1309.32,0.0001977,2]
[359700588,1746263443464,-522.92,0.0001977,2]
[359700589,1746263443475,-560.76,0.0001977,2]
[359700590,1746263443484,-1558.76,0.0001977,2]
[359700591,1746263443494,-675.0,0.0001977,2]
[359700592,1746263443504,-458.70795027,0.0001977,2]
[359700593,1746263443515,-450.0,0.0001977,2]
[359700594,1746263443525,-450.0,0.0001977,2]
[359700595,1746263443534,-450.0,0.0001977,2]
[359700596,1746263443859,-450.0,0.0001977,2]
[359700597,1746263443870,-500.0,0.0001977,2]
[359700598,1746263443879,-500.0,0.0001977,2]
[359700599,1746263443889,-2439.67,0.0001977,2]
[359700600,1746263443898,-1062.67,0.0001977,2]
[359700601,1746263443907,-2190.24,0.0001977,2]
[359700602,1746263443916,-684.0,0.0001977,2]
[359700603,1746263443925,-450.0,0.0001977,2]